Cogmind - Beta 16 @@@ ROGUE MODE // 2025.11.06 @ 20:52:53 Player: 3.14 Result: Escaped! Performance ------------- Evolutions (9) 4500 Regions Visited (26) 5200 Robots Destroyed (186) 930 Value Destroyed (16205) 16205 Prototype IDs (22) 440 Alien Tech Used (0) 0 Bonus (24838) 24838 TOTAL SCORE: 52113 Bonus ------- Triggered High Security 500 High Alert Combat Kills 1629 Follower Combat Kills 10449 Entered Garrisons 1800 Used RIF Installer 5000 Met R17 at Cetus 500 Met R17 at Research 2000 Win 3000 Friendly Fire -40 Cogmind --------- Core Integrity 1305/1600 Matter 300/300 Energy 99/100 System Corruption 1% Temperature Cool (0) Movement Core (50) Location To Epsilon Eridani Parts ------- > --- POWER (1) -------- (None) > --- PROPULSION (4) --- Armored Heavy Treads Heavy Shield Leg > --- UTILITY (18) ----- Improved Core Shielding Relay Coupler [Heavy] (27) Relay Coupler [Heavy] (24) > --- WEAPON (2) ------- (None) > --- INVENTORY (5) ---- Biometal Medium Treads Matter Neutralizer Peak State ------------ > --- POWER ------------ Improved Quantum Reactor > --- PROPULSION ------- Biometal Heavy Treads Advanced Heavy Siege Treads > --- UTILITY ---------- Experimental Heat Sink Cargo Storage Unit Experimental Optical Array Experimental Core Analyzer Armor Integrity Analyzer Centrium Medium Armor Plating Advanced Point Defense System Relay Coupler [C] Relay Coupler [C] Relay Coupler [Sentry] Relay Coupler [Demolisher] Relay Coupler [Specialist] Relay Coupler [Specialist] Relay Coupler [Hunter] Relay Coupler [Heavy] Relay Coupler [Proto] > --- WEAPON ----------- Enhanced Nova Cannon Advanced Remote Datajack > --- INVENTORY -------- Particle Reactor Quantum Reactor Armored Heavy Treads Compact Wheel Relay Coupler [C] Relay Coupler [C] Relay Coupler [C] Relay Coupler [Specialist] Relay Coupler [Hunter] Relay Coupler [Hunter] Relay Coupler [Hunter] Relay Coupler [Heavy] Relay Coupler [Heavy] Relay Coupler [Proto] Relay Coupler [Proto] Relay Coupler [Proto] Relay Coupler [Proto] Advanced Component Analysis Suite Micro-nuke Launcher Micro-nuke Launcher Advanced Remote Datajack Enhanced Force Lance [Rating: 182] Favorites ----------- Power Quantum Reactor Engine Cooled Ion Engine Power Core Micro Nuclear Core Reactor Quantum Reactor Propulsion Light Treads Treads Light Treads Leg Heavy Shield Leg Wheel Armored Huge Wheel Utility Relay Coupler [Hunter] Device Improved Heat Sink Storage Huge Storage Unit Processor Advanced Targeting Computer Hackware Relay Coupler [Hunter] Protection Hardened Medium Armor Plating Weapon Enhanced Force Lance Energy Gun Gatling Laser Energy Cannon Heavy Ion Cannon Ballistic Gun Improved Assault Rifle Ballistic Cannon Advanced Assault Cannon Launcher Mini Grenade Launcher Special Weapon Advanced Remote Datajack Impact Weapon Hammer Piercing Weapon Enhanced Force Lance Special Melee Weapon Datajack Build | -11 -10 -9 -8 -8 -8 -8 -7 -7 -7 -7 -6 -6 -6 -6 -6 -6 -6 -5 -5 -4 -4 -3 -3 -3 -2 -1 ------- Run | Yrd Mat Mat Mat Gar Mat Gar Fac Gar Fac Gar Fac Gar Ext Cet Arc Hub Gar Fac Gar Fac Gar Res Tes Gar Res Acc Slots Evolved 18 | . . 2 2 . . . 2 . . . 2 . . . . . . 2 . 2 . 2 . . 2 2 Power . | . . . . . . . . . . . . . . . . . . . . . . . . . . . Propulsion 2 | . . 1 1 . . . . . . . . . . . . . . . . . . . . . . . Utility 16 | . . 1 1 . . . 2 . . . 2 . . . . . . 2 . 2 . 2 . . 2 2 Weapon . | . . . . . . . . . . . . . . . . . . . . . . . . . . . Parts Attached 247 | 7 5 16 7 22 12 12 2 16 1 28 2 11 4 7 2 2 12 2 12 3 13 10 5 10 8 16 Power 16 | 1 2 1 . . . 2 . 2 . 2 . 1 . 1 . . . . . . 1 . 1 2 . . Engine 5 | 1 1 1 . . . 1 . 1 . . . . . . . . . . . . . . . . . . Core 5 | . 1 . . . . 1 . 1 . 2 . . . . . . . . . . . . . . . . Reactor 6 | . . . . . . . . . . . . 1 . 1 . . . . . . 1 . 1 2 . . Propulsion 45 | 2 . 5 2 9 3 4 . 3 1 5 . . . 1 . . 1 . 1 . . 2 . . 1 5 Treads 34 | 2 . 5 2 7 3 2 . 2 1 3 . . . 1 . . . . 1 . . 1 . . 1 3 Leg 2 | . . . . . . . . . . . . . . . . . . . . . . . . . . 2 Wheel 9 | . . . . 2 . 2 . 1 . 2 . . . . . . 1 . . . . 1 . . . . Hover . | . . . . . . . . . . . . . . . . . . . . . . . . . . . Flight . | . . . . . . . . . . . . . . . . . . . . . . . . . . . Utility 140 | 2 1 4 3 9 7 3 2 9 . 16 1 8 2 3 2 2 9 2 11 3 9 6 3 7 7 9 Device 14 | 1 . 2 . 3 . . 1 . . 1 . 1 . 1 . . . . . . . 2 . . 1 1 Storage 6 | 1 1 1 . . . . . . . . . . 1 . . . . . . . 2 . . . . . Processor 9 | . . 1 1 1 . . . 1 . 1 . . . . . . . . . . . . . 2 . 2 Hackware 90 | . . . 1 4 5 2 . 8 . 10 1 7 1 . 1 1 7 2 11 3 6 4 2 5 5 4 Protection 21 | . . . 1 1 2 1 1 . . 4 . . . 2 1 1 2 . . . 1 . 1 . 1 2 Artifact . | . . . . . . . . . . . . . . . . . . . . . . . . . . . Weapon 46 | 2 2 6 2 4 2 3 . 2 . 5 1 2 2 2 . . 2 . . . 3 2 1 1 . 2 Energy Gun 12 | 1 . 3 2 . 1 . . . . 1 . . 1 1 . . 1 . . . 1 . . . . . Energy Cannon 6 | . . . . 2 . . . . . 1 . . . . . . . . . . . . 1 1 . 1 Ballistic Gun 13 | 1 2 3 . . . 1 . . . 2 . . 1 1 . . 1 . . . 1 . . . . . Ballistic Cannon 1 | . . . . . . . . . . 1 . . . . . . . . . . . . . . . . Launcher 3 | . . . . 1 . 1 . . . . . . . . . . . . . . . . . . . 1 Special Weapon 5 | . . . . . . 1 . 1 . . . 1 . . . . . . . . 1 1 . . . . Impact Weapon 1 | . . . . . 1 . . . . . . . . . . . . . . . . . . . . . Slashing Weapon . | . . . . . . . . . . . . . . . . . . . . . . . . . . . Piercing Weapon 4 | . . . . . . . . 1 . . 1 1 . . . . . . . . . 1 . . . . Special Melee Weapon 1 | . . . . 1 . . . . . . . . . . . . . . . . . . . . . . Unidentified Prototypes 14 | . . 3 . . . . . . . . . . . 4 . 1 . . . . . . 2 3 1 . Parts Lost 31 | . 1 3 1 2 . 2 . 1 . 6 . . . 1 . . 1 . . 1 2 . . 2 2 6 Power 4 | . 1 . . . . 1 . 1 . . . . . . . . . . . . . . . 1 . . Propulsion 8 | . . 3 1 . . 1 . . . 1 . . . . . . . . . . . . . . . 2 Utility 15 | . . . . 1 . . . . . 4 . . . 1 . . 1 . . 1 . . . 1 2 4 Weapon 4 | . . . . 1 . . . . . 1 . . . . . . . . . . 2 . . . . . Highest Loss Streak 6 | . 1 2 1 2 . 1 . 1 . 6 . . . 1 . . 1 . . 1 1 . . 1 1 4 To Critical Strikes . | . . . . . . . . . . . . . . . . . . . . . . . . . . . Average Backups 22 | 3 11 22 24 23 23 23 23 23 23 21 23 23 21 22 22 23 22 21 22 20 23 27 24 25 26 18 Power . | . 1 1 1 1 1 . . . 1 1 1 1 1 1 1 1 1 1 1 1 1 1 1 . 1 1 Propulsion 2 | 1 2 4 2 3 3 3 4 3 3 2 4 3 3 2 2 2 1 2 2 2 2 2 2 2 2 1 Utility 13 | . 1 5 6 8 11 13 14 15 15 15 12 13 12 13 13 14 13 13 16 14 17 22 20 21 21 12 Weapon 3 | 1 4 9 12 9 5 3 2 2 3 2 5 4 3 3 4 5 4 4 2 2 1 1 1 1 . 2 Tool/Special . | . . . . . . . . . . . . . . . . . . . . . . . . . . . Unused Backups 89 | . 1 9 3 6 4 3 1 3 1 12 . 7 . 2 . . 6 . 5 . 3 1 . 5 1 16 Power 7 | . . 1 . . . . 1 1 . . . . . 1 . . . . . . . . . . 1 2 Propulsion 14 | . 1 1 . 2 1 . . . . 3 . 3 . 1 . . 1 . . . . . . . . 1 Utility 48 | . . . 1 2 3 2 . 2 . 9 . 1 . . . . 3 . 5 . 3 1 . 5 . 11 Weapon 17 | . . 7 2 2 . . . . 1 . . 3 . . . . 1 . . . . . . . . 1 Tool/Special 3 | . . . . . . 1 . . . . . . . . . . 1 . . . . . . . . 1 Average Slot Usage (%) 87 | . 99 99 99 92 89 89 83 90 91 82 83 85 84 85 85 86 85 84 87 85 84 83 85 84 85 71 Engine 3 | . 8 9 9 9 9 8 7 6 7 1 . . . . . . . . . . . . . . . . Core 1 | . 5 1 . . . . . . . 5 6 3 . . . . . . . . . . . . . . Reactor 2 | . . . . . . . . . . . . 2 6 6 6 6 6 5 5 5 4 4 4 4 4 3 Treads 11 | . 28 32 36 23 18 18 13 15 15 8 6 6 6 6 6 6 6 5 5 5 5 4 4 4 4 5 Wheel 4 | . . . . 6 9 8 7 7 7 7 6 6 6 6 6 6 6 5 5 4 5 4 4 4 4 1 Device 4 | . 14 14 16 8 1 5 11 5 . 2 . . 2 6 4 3 3 . 1 . . 3 3 . . 4 Storage 6 | . 14 11 9 9 9 9 7 7 7 7 6 6 6 6 6 6 6 5 5 5 5 4 4 4 4 3 Processor 2 | . . 7 1 9 10 9 7 7 7 . . . . . . . . . . . . . . 1 4 6 Hackware 28 | . . . . . 9 7 . 14 23 25 36 42 36 33 34 36 33 43 45 45 48 51 52 51 52 36 Protection 4 | . . . 8 8 4 4 11 8 6 5 6 3 4 5 6 6 7 5 5 8 3 . . 2 3 3 Energy Gun 2 | . 2 6 9 4 9 6 7 2 . . . . 2 3 . . 1 . . . . . . . . . Ballistic Gun 4 | . 25 15 9 8 2 8 7 3 . 2 3 . . 8 . . . . . . 1 3 . . . . Special Weapon 2 | . . . . . . . . 2 7 4 6 4 4 . 5 6 5 5 5 5 3 . 4 3 3 3 Piercing Weapon 2 | . . . . . . . . 4 7 . 2 7 4 . 5 6 4 5 5 5 4 4 4 3 4 1 Peak Build Rating 182 | 7 10 23 28 35 38 39 46 47 45 64 70 84 84 97 97 94 99 99 102 107 131 147 155 142 159 182 Average Rating 78 | 5 8 18 27 31 34 36 41 44 44 59 67 76 82 91 93 91 92 97 99 101 118 138 142 136 154 146 On Entrance 73 | . 7 10 23 28 34 38 37 46 45 45 61 70 84 83 97 92 92 92 99 97 107 127 146 138 141 154 Avg Prop Armor Cover (%) 17 | . . . . 14 16 14 12 13 14 15 17 21 18 13 14 14 13 15 15 15 17 19 19 15 14 34 Naked Turns 14 | . . . . . . . . . . . . . . . . . . . . . . . . . . 14 Heaviest Build 187 | 12 48 97 103 102 104 104 110 110 98 128 100 119 122 120 121 121 128 120 121 127 181 175 174 185 186 187 Greatest Support 155 | 40 40 60 80 80 28 42 28 28 28 40 28 28 28 60 28 28 80 28 80 28 60 28 28 28 28 155 Greatest Overweight (x) 6 | . 1 1 1 3 3 3 3 3 3 4 3 4 4 4 4 4 4 4 4 4 6 6 6 6 6 6 Average Overweight (x) 3 | . . . 1 2 3 2 3 3 3 3 3 3 3 3 4 4 3 4 3 4 5 6 5 5 6 1 Largest Inventory Capacity 30 | 8 20 25 25 25 25 25 25 25 25 25 25 25 25 25 25 25 25 25 25 25 30 30 30 30 30 30 Average Capacity 25 | 7 17 24 25 25 25 25 25 25 25 25 25 25 25 25 25 25 25 25 25 25 28 30 30 30 30 24 Most Carried 30 | 5 14 25 25 25 25 25 25 25 25 25 25 25 25 25 25 25 25 25 25 24 30 30 30 30 29 28 Average Carried 24 | 3 11 22 24 24 24 24 24 24 24 24 24 24 23 24 24 25 24 23 24 22 26 29 26 27 28 19 Final Capacity 30 | 8 20 25 25 25 25 25 25 25 25 25 25 25 25 25 25 25 25 25 25 25 30 30 30 30 30 5 Final Carried 30 | 5 14 25 25 25 23 25 25 25 25 25 24 25 23 25 25 25 25 23 25 21 30 29 25 29 26 2 Class Distribution -------------------- 53% | Botlord-Mutant 22% | Bothacker-Mutant 10% | Mutant 6% | Scavenger-Mutant 4% | Hauler-Mutant Dominant Class ---------------- Mutant | -10/Materials Mutant | -9/Materials Scavenger-Mutant | -8/Materials Bothacker-Mutant | -8/Garrison Bothacker-Mutant | -8/Materials Bothacker-Mutant | -8/Garrison Bothacker-Mutant | -7/Factory Bothacker-Mutant | -7/Garrison Bothacker-Mutant | -7/Factory Bothacker-Mutant | -7/Garrison Botlord-Mutant | -6/Factory Botlord-Mutant | -6/Garrison Botlord-Mutant | -6/Extension Botlord-Mutant | -6/Cetus Botlord-Mutant | -6/Archives Botlord-Mutant | -6/Hub_04(d) Botlord-Mutant | -6/Garrison Botlord-Mutant | -5/Factory Botlord-Mutant | -5/Garrison Botlord-Mutant | -4/Factory Botlord-Mutant | -4/Garrison Hauler-Mutant | -3/Research Botlord-Mutant | -3/Testing Botlord-Mutant | -3/Garrison Botlord-Mutant | -2/Research Botlord-Mutant | -1/Access Resources | -11 -10 -9 -8 -8 -8 -8 -7 -7 -7 -7 -6 -6 -6 -6 -6 -6 -6 -5 -5 -4 -4 -3 -3 -3 -2 -1 ----------- Run | Yrd Mat Mat Mat Gar Mat Gar Fac Gar Fac Gar Fac Gar Ext Cet Arc Hub Gar Fac Gar Fac Gar Res Tes Gar Res Acc Matter Collected 9401 | 282 131 618 126 1013 241 645 44 278 80 1332 75 270 582 214 90 48 547 . 367 277 532 145 286 359 316 503 Remotely . | . . . . . . . . . . . . . . . . . . . . . . . . . . . Salvage Created 8849 | 84 513 1343 428 1188 269 851 44 137 . 957 26 367 387 172 . . 469 . 103 18 912 . . 179 259 143 Parts 442 | 9 36 69 12 65 18 34 4 14 . 55 . 1 20 8 . . 21 . 7 1 50 . . 4 8 6 Haulers Intercepted 6 | . 2 4 . . . . . . . . . . . . . . . . . . . . . . . . Recyclers Shooed 13 | 1 . 7 2 . 1 . . . . . . . . . . . . . . . . . . . . 2 Parts Field Recycled . | . . . . . . . . . . . . . . . . . . . . . . . . . . . Retrieved Matter . | . . . . . . . . . . . . . . . . . . . . . . . . . . . Parts Self-Destructed . | . . . . . . . . . . . . . . . . . . . . . . . . . . . Prevented . | . . . . . . . . . . . . . . . . . . . . . . . . . . . Parts Restored . | . . . . . . . . . . . . . . . . . . . . . . . . . . . Kills | -11 -10 -9 -8 -8 -8 -8 -7 -7 -7 -7 -6 -6 -6 -6 -6 -6 -6 -5 -5 -4 -4 -3 -3 -3 -2 -1 ------- Run | Yrd Mat Mat Mat Gar Mat Gar Fac Gar Fac Gar Fac Gar Ext Cet Arc Hub Gar Fac Gar Fac Gar Res Tes Gar Res Acc Combat Hostiles Destroyed 152 | . 13 21 9 29 6 19 1 9 . 22 1 1 2 2 . . 4 . 1 . 6 . . 1 4 1 Melee 14 | . . . . . 1 . . . . 1 1 1 1 . . . 1 . 1 . 5 . . 1 1 . Guns 89 | . 13 21 9 21 5 11 1 3 . 1 . . . 2 . . 1 . . . 1 . . . . . Cannons 18 | . . . . 5 . . . . . 10 . . . . . . . . . . . . . . 2 1 AOE 28 | . . . . 3 . 7 . 6 . 10 . . . . . . 2 . . . . . . . . . Classes Destroyed 22 | 2 5 3 2 2 . 2 . . . 1 . 1 1 . . . 2 . . . . . . 1 . . Worker 3 | . 1 1 . . . . . . . . . . . . . . . . . 1 . . . . . . Builder 3 | . . . . . . . . . . . . . 3 . . . . . . . . . . . . . Tunneler 1 | 1 . . . . . . . . . . . . . . . . . . . . . . . . . . Hauler 6 | . 2 4 . . . . . . . . . . . . . . . . . . . . . . . . Recycler 9 | 1 1 5 . . . . . . . . . . 1 . . . . . . . . . . . . 1 Mechanic 1 | . . . 1 . . . . . . . . . . . . . . . . . . . . . . . Operator 2 | . 1 . . . . . . . . . . . 1 . . . . . . . . . . . . . Watcher 3 | . . 1 . . . . . . . . . . . 1 . . . . . . . . . . . 1 Swarmer 57 | . 9 7 . 15 1 6 . 9 . 8 1 . . . . . . . . . . . . . 1 . Cutter 3 | . . . . . . . . . . . . . . . . . 2 . . . 1 . . . . . Grunt 37 | . 4 9 7 2 1 9 . . . 2 . . 1 . . . . . 1 . 1 . . . . . Brawler 1 | . . . 1 . . . . . . . . . . . . . . . . . . . . . . . Duelist 1 | . . 1 . . . . . . . . . . . . . . . . . . . . . . . . Protector 1 | . . . . . . 1 . . . . . . . . . . . . . . . . . . . . Sentry 22 | . . 4 1 6 4 . . . . 2 . . 1 . . . 2 . . . 2 . . . . . Demolisher 1 | . . . . . . 1 . . . . . . . . . . . . . . . . . . . . Specialist 1 | . . . . . . . . . . . . . . . . . 1 . . . . . . . . . Hunter 4 | . . . . 2 . . . . . . . . . . . . . . 1 . . . . . 1 . Programmer 21 | . . . . 5 . 3 1 . . 8 . . . . . . . . . . 3 . . . 1 . Heavy 2 | . . . . . . . . . . 2 . . . . . . . . . . . . . . . . Behemoth 4 | . . . . . . . . . . . . 1 1 . . . . . . . . . . . 1 1 Cetus Guard 2 | . . . . . . . . . . . . . . 2 . . . . . . . . . . . . Executioner 1 | . . . . . . . . . . . . . . . . . . . . . . . . 1 . . Best Kill Streak 7 | 1 3 7 6 4 3 4 1 3 . 7 1 1 1 1 . . 2 . 1 1 2 . . 1 1 2 Combat Bots Only 7 | . 3 7 5 4 3 4 1 3 . 7 1 1 1 1 . . 2 . 1 . 2 . . 1 1 1 Max Kills in Single Turn 3 | 1 2 2 1 3 1 3 1 3 . 3 1 1 1 1 . . 2 . 1 1 1 . . 1 1 1 Gunslinging 1 | . 1 1 . 1 . . . . . . . . . . . . . . . . . . . . . . Exploded 3 | . . . . 2 . 3 . 3 . 3 . . . . . . 2 . . . . . . . . . Melee 1 | . . . . . 1 . . . . 1 1 1 1 . . . 1 . 1 . 1 . . 1 1 . Uniques/NPCs Destroyed . | . . . . . . . . . . . . . . . . . . . . . . . . . . . Combat | -11 -10 -9 -8 -8 -8 -8 -7 -7 -7 -7 -6 -6 -6 -6 -6 -6 -6 -5 -5 -4 -4 -3 -3 -3 -2 -1 -------- Run | Yrd Mat Mat Mat Gar Mat Gar Fac Gar Fac Gar Fac Gar Ext Cet Arc Hub Gar Fac Gar Fac Gar Res Tes Gar Res Acc Hostile Shots Fired 1238 | . 69 100 27 115 29 92 4 88 . 135 . 29 29 38 . . 69 2 8 8 113 4 18 22 45 194 Missed 347 | . 11 24 7 26 9 19 1 40 . 39 . 12 9 10 . . 18 2 1 2 30 1 4 6 17 59 Hits 891 | . 58 76 20 89 20 73 3 48 . 96 . 17 20 28 . . 51 . 7 6 83 3 14 16 28 135 Melee 26 | . . 1 1 . . . . . . 3 . . . . . . 3 . . . 16 . . . 1 1 Projectile 865 | . 58 75 19 89 20 73 3 48 . 93 . 17 20 28 . . 48 . 7 6 67 3 14 16 27 134 AOE 13 | . . . . 1 . 4 . . . . . . . . . . 3 . . . . . . . 4 1 Critical Strikes 55 | . 3 3 3 3 3 1 . 1 . 8 . . . 6 . . . . . . 13 . 1 1 . 9 Actively Blocked 1 | . . . . . . . . . . . . . . . . . . . . . . . . . . 1 Damage Taken 16514 | . 610 767 239 870 416 1070 48 708 . 1705 . 183 490 748 . . 898 6 173 178 1953 108 293 488 1088 3475 Core 1866 | . 103 116 . 104 42 123 . 78 . 101 . 16 52 57 . . 184 . 19 16 349 . 29 27 155 295 Absorbed by Shields 1084 | . . 124 92 296 . 24 . . . 122 . 35 . . . . 175 . 5 . 46 . . 165 . . Reduced by Siege Mode 190 | . . . . . . . . . . . . . . 96 . . 3 . . . . . . . . 91 Redirected to Shielding 57 | . . . . . . . . . . . . . . . . . . . . . . . . . . 57 Regen/Repaired (Parts) 812 | . 89 . . . . . . . . . . . . . . . . . . 122 . . . . 456 145 Core Remaining (%) 77 | 100 58 71 . . . 51 . . . 74 . . . . . . 63 . 98 . 68 . . 95 89 81 Volleys Fired 1049 | 12 48 92 23 237 7 83 2 33 . 163 . 22 62 21 4 3 35 2 25 21 28 4 27 20 43 32 Largest 2 | 1 2 2 2 2 2 2 2 2 . 2 . 1 2 2 1 1 2 1 1 1 1 1 1 1 1 1 Hottest 160 | 20 60 112 103 103 160 160 103 103 . 105 . 10 129 129 10 10 160 10 80 10 65 10 10 120 120 120 Shots Fired 1401 | 12 95 184 46 297 11 153 4 36 . 183 . 22 66 39 4 3 43 2 25 21 29 4 27 20 43 32 Gun 927 | 12 95 184 46 272 11 136 4 16 . 62 . . 21 39 . . 18 . 3 . 8 . . . . . Cannon 121 | . . . . 20 . 8 . . . 62 . . . . . . . . . . . . . 3 8 20 Launcher 32 | . . . . 5 . 5 . 4 . 17 . . . . . . 1 . . . . . . . . . Special 321 | . . . . . . 4 . 16 . 42 . 22 45 . 4 3 24 2 22 21 21 4 27 17 35 12 Kinetic 730 | 12 86 151 23 216 . 106 2 13 . 77 . . 5 32 . . 1 . . . 6 . . . . . Thermal 308 | . . 32 23 76 11 38 2 3 . 47 . . 16 7 . . 17 . 3 . 2 . . 3 8 20 Explosive 32 | . . . . 5 . 5 . 4 . 17 . . . . . . 1 . . . . . . . . . Electromagnetic 10 | . 9 1 . . . . . . . . . . . . . . . . . . . . . . . . Robot Hit Streak 42 | 2 15 22 14 27 17 35 9 6 . 40 . 42 19 14 3 4 5 6 7 14 10 1 20 13 8 9 Robot Miss Streak 7 | 7 3 3 2 2 2 2 1 2 . 3 . 2 1 1 1 1 2 . 2 3 2 2 1 2 3 2 Penetration Max 1 | . . . . . . . . . . . . . . 1 . . . . . . . . . . . . Secondary Targets 13 | . 4 2 . 5 1 . . . . . . . . 1 . . . . . . . . . . . . Max Gunslinging Chain 1 | . 1 1 . 1 1 . . . . . . . . 1 . . . . . . . . . . . . Shots Hit Robots 1184 | 4 57 135 40 241 23 132 4 20 . 144 1 40 56 36 3 2 38 2 23 18 60 2 25 24 32 22 Core Hits 432 | 4 33 44 28 104 10 68 2 13 . 53 1 8 5 14 . . 12 . 2 1 17 . . 2 3 8 Critical Kills 7 | . 1 . . . 1 2 . . . 1 . . . . . . . . . . 1 . . . 1 . Critical Parts Destroyed 8 | . 2 1 . 1 . 2 . . . . . . . 2 . . . . . . . . . . . . Critical Strikes 36 | . 4 4 . 4 1 5 . . . 1 . 3 . 2 . . 3 . 2 . 5 . . 1 1 . Burn 6 | . . 3 . 3 . . . . . . . . . . . . . . . . . . . . . . Meltdown 2 | . . . . . . . . . . 1 . . . . . . . . . . . . . . 1 . Destroy 12 | . 3 1 . 1 . 4 . . . . . . . 2 . . . . . . 1 . . . . . Corrupt 1 | . 1 . . . . . . . . . . . . . . . . . . . . . . . . . Smash 2 | . . . . . 1 1 . . . . . . . . . . . . . . . . . . . . Impale 13 | . . . . . . . . . . . . 3 . . . . 3 . 2 . 4 . . 1 . . Melee Attacks 190 | . . . . 5 14 7 . 2 . 9 1 33 20 . . . 11 . 13 1 49 . 1 15 6 3 Impact 8 | . . . . . 1 7 . . . . . . . . . . . . . . . . . . . . Slashing . | . . . . . . . . . . . . . . . . . . . . . . . . . . . Piercing 164 | . . . . . . . . 2 . 9 1 33 20 . . . 11 . 13 1 49 . 1 15 6 3 Sneak Attacks 42 | . . . . . 7 . . . . 4 1 . 8 . . . 2 . 4 1 6 . . 5 4 . Combat Hostiles 1 | . . . . . 1 . . . . . . . . . . . . . . . . . . . . . Follow-up Attacks 1 | . . . . . . . . . . . . 1 . . . . . . . . . . . . . . Damage Inflicted 23066 | 31 532 2036 763 3403 261 2271 90 441 . 2931 54 1131 1037 1054 . . 1070 . 536 118 2940 . . 726 713 928 Guns 10331 | 31 518 2007 740 2678 220 1548 90 133 . 499 . . 223 1054 . . 394 . 88 . 108 . . . . . Cannons 2645 | . . . . 241 . 153 . . . 1167 . . . . . . . . . . . . . 45 271 768 Explosions 2544 | . . . . 484 . 484 . 308 . 998 . . . . . . 114 . . . . . . . . 156 Melee 7421 | . . . . . 36 86 . . . 267 54 1131 802 . . . 562 . 448 118 2832 . . 681 404 . Ramming 125 | . 14 29 23 . 5 . . . . . . . 12 . . . . . . . . . . . 38 4 Kinetic 6822 | 31 439 1632 292 1731 . 845 37 123 . 654 . . 106 853 . . . . . . 79 . . . . . Thermal 6051 | . . 351 448 1188 220 856 53 10 . 1012 . . 117 201 . . 394 . 88 . 29 . . 45 271 768 Explosive 2544 | . . . . 484 . 484 . 308 . 998 . . . . . . 114 . . . . . . . . 156 Electromagnetic 103 | . 79 24 . . . . . . . . . . . . . . . . . . . . . . . . Impact 122 | . . . . . 36 86 . . . . . . . . . . . . . . . . . . . . Slashing . | . . . . . . . . . . . . . . . . . . . . . . . . . . . Piercing 7299 | . . . . . . . . . . 267 54 1131 802 . . . 562 . 448 118 2832 . . 681 404 . Highest Corruption 12 | . . . . 3 3 10 . . . 6 . . . . . . 3 . . . 12 . . . 6 1 Average Corruption 5 | . . . . 2 3 8 . . . 5 . . . . . . 3 . . . 11 . . . 4 1 Corruption Purged . | . . . . . . . . . . . . . . . . . . . . . . . . . . . Corruption Blocked . | . . . . . . . . . . . . . . . . . . . . . . . . . . . Effects 193 | . . . . 8 10 41 . . . 57 . . . . . . 27 . . . 36 . . . 10 4 Message Errors 44 | . . . . . 3 7 . . . 8 . . . . . . 9 . . . 12 . . . 4 1 Matter Fused 48 | . . . . 2 3 8 . . . 11 . . . . . . 8 . . . 14 . . . 1 1 Heat Flow Errors 22 | . . . . 2 . 6 . . . 7 . . . . . . 2 . . . 3 . . . 1 1 Energy Discharges 21 | . . . . . . 6 . . . 11 . . . . . . 1 . . . 1 . . . 2 . Parts Rejected 4 | . . . . . 2 . . . . 1 . . . . . . . . . . . . . . 1 . Data Loss (minor) 24 | . . . . 1 . 6 . . . 8 . . . . . . 4 . . . 3 . . . 1 1 Data Loss (major) 13 | . . . . . 1 3 . . . 7 . . . . . . 1 . . . 1 . . . . . Misfires 4 | . . . . 1 . 1 . . . 1 . . . . . . . . . . 1 . . . . . Alerts 8 | . . . . 2 1 1 . . . 1 . . . . . . 2 . . . 1 . . . . . Weapon Failures 5 | . . . . . . 3 . . . 2 . . . . . . . . . . . . . . . . Overload Shots . | . . . . . . . . . . . . . . . . . . . . . . . . . . . Overflow Damage 1321 | . . 1 . 49 . 69 . 4 . 65 . . 277 . . . 31 . 217 . 212 . . 341 40 15 Projectiles 56 | . . . . 14 . 14 . . . 13 . . . . . . . . . . . . . . . 15 Explosions 77 | . . . . 35 . . . 4 . 38 . . . . . . . . . . . . . . . . Melee 1188 | . . 1 . . . 55 . . . 14 . . 277 . . . 31 . 217 . 212 . . 341 40 . Knockbacks . | . . . . . . . . . . . . . . . . . . . . . . . . . . . Impact . | . . . . . . . . . . . . . . . . . . . . . . . . . . . Kinetic . | . . . . . . . . . . . . . . . . . . . . . . . . . . . Secondary . | . . . . . . . . . . . . . . . . . . . . . . . . . . . Self-Inflicted Damage 239 | . . . . 88 2 . . 23 . 64 . . 6 . . . 37 . . . . . . . 19 . Shots 8 | . . . . 2 . . . 1 . 4 . . . . . . 1 . . . . . . . . . Rammed 15 | . 2 3 3 . 1 . . . . . . . 1 . . . . . . . . . . . 1 4 Targets Rammed 17 | . 3 4 3 . 1 . . . . . . . 1 . . . . . . . . . . . 1 4 Kicked . | . . . . . . . . . . . . . . . . . . . . . . . . . . . Crushed 2 | . 1 1 . . . . . . . . . . . . . . . . . . . . . . . . Highest Temperature 268 | . 76 76 33 251 144 265 . . . 268 . . 144 . . . 120 . . . 246 . . 174 108 157 Average Temperature 53 | . 28 13 8 57 54 69 . . . 70 . . 69 . . . 51 . . . 114 . . 94 45 62 Received Heat Transfer 1835 | . 270 267 154 69 135 172 . 30 . 50 . 37 78 18 . . 107 . 45 36 115 9 30 33 63 117 Siege Activations 4 | . . . . . . . . . . . . . . 2 . . 1 . . . . . . . . 1 Total Turns 95 | . . . . . . . . . . . . . . 54 . . 8 . . . . . . . . 33 Longest Duration 33 | . . . . . . . . . . . . . . 28 . . 8 . . . . . . . . 33 Martial Activations . | . . . . . . . . . . . . . . . . . . . . . . . . . . . Shielding Activations . | . . . . . . . . . . . . . . . . . . . . . . . . . . . Robots Disrupted . | . . . . . . . . . . . . . . . . . . . . . . . . . . . Combat Hostiles . | . . . . . . . . . . . . . . . . . . . . . . . . . . . Robots Corrupted 1 | . . . . . . . . . . . . . 1 . . . . . . . . . . . . . Combat Hostiles . | . . . . . . . . . . . . . . . . . . . . . . . . . . . Parts Fried 2 | . . . . . . . . . . . . . 2 . . . . . . . . . . . . . Impact Corruptions 4 | . . 1 . . . 2 . . . . . . 1 . . . . . . . . . . . . . Robots Melted 4 | . . . . . . 1 . . . 1 . . 1 . . . . . . . . . . . 1 . Combat Hostiles 3 | . . . . . . 1 . . . . . . 1 . . . . . . . . . . . 1 . Parts Melted 13 | . . . . 4 . 5 . . . 2 . . 2 . . . . . . . . . . . . . Heat Transferred 10040 | . . 962 1025 2671 500 1691 100 25 . 1333 . . 148 259 . . 481 . 111 . 37 . . 37 222 438 Parts Sabotaged . | . . . . . . . . . . . . . . . . . . . . . . . . . . . Parts Stolen . | . . . . . . . . . . . . . . . . . . . . . . . . . . . Parts Stripped . | . . . . . . . . . . . . . . . . . . . . . . . . . . . Power Chain Reactions . | . . . . . . . . . . . . . . . . . . . . . . . . . . . Alert | -11 -10 -9 -8 -8 -8 -8 -7 -7 -7 -7 -6 -6 -6 -6 -6 -6 -6 -5 -5 -4 -4 -3 -3 -3 -2 -1 ------- Run | Yrd Mat Mat Mat Gar Mat Gar Fac Gar Fac Gar Fac Gar Ext Cet Arc Hub Gar Fac Gar Fac Gar Res Tes Gar Res Acc Maximum Alert Level 5 | . . 1 . 5 3 3 2 2 1 4 3 3 2 . . . 4 3 5 4 5 4 3 4 5 5 Low Security (%) 20 | 100 100 80 100 8 . . 8 18 . 14 . . 23 100 100 100 9 . . . . . . . . . Level 1 13 | . . 19 . 18 6 17 74 24 100 7 . . 58 . . . 3 . . . . . 34 15 . . Level 2 16 | . . . . 19 73 35 16 57 . 19 92 26 17 . . . 30 22 8 . . . 65 23 . . Level 3 23 | . . . . 23 19 47 . . . 42 7 73 . . . . 24 77 57 73 5 61 . 22 28 . Level 4 17 | . . . . 17 . . . . . 15 . . . . . . 33 . 22 26 50 38 . 38 27 63 Level 5 7 | . . . . 12 . . . . . . . . . . . . . . 11 . 43 . . . 30 36 High Security . | . . . . . . . . . . . . . . . . . . . . . . . . . 14 . Max Security . | . . . . . . . . . . . . . . . . . . . . . . . . . . . Peak Influence 2982 | 5 94 248 125 1841 897 874 458 637 333 1202 705 1056 554 158 93 48 1351 817 1619 1357 2422 1384 726 1566 2982 1776 Initial 1776 | . . 33 16 42 897 272 458 125 333 159 630 479 554 155 . 14 19 709 543 849 944 1362 549 328 880 1776 Average 742 | . 14 77 60 833 560 633 304 396 282 737 658 782 276 91 54 13 833 749 1014 1041 1698 1082 465 887 1663 1562 Influence Increases 20717 | 10 382 656 232 1879 415 682 39 622 15 1303 95 857 923 278 93 48 1581 158 1436 814 1878 586 798 1538 3048 351 Destroy 0b10 Robot/C 8260 | . 260 420 180 660 220 360 20 300 . 600 60 260 320 160 60 20 620 60 480 320 700 260 440 440 960 80 Destroy 0b10 Robot/NC 520 | 10 25 55 5 25 20 20 . 5 . 15 . 15 40 10 . . 10 . . 35 20 15 45 5 110 35 Destroy Leader 952 | . 64 120 40 50 72 20 10 20 . 40 . 40 54 . . . 30 20 20 54 40 32 24 40 146 16 Allied During Kill 4362 | . . . . 16 23 3 . 14 . 19 35 92 327 104 32 12 327 78 385 391 637 179 140 423 1085 40 Successful Hack 220 | . 33 . 7 21 5 42 9 14 15 . . . 21 . . . 7 . . 2 14 30 . . . . Disable Machine 345 | . . 15 . . 30 . . . . 45 . . 60 . . 15 . . 15 . . . 60 15 45 45 Anti-Garrison Action 4400 | . . . . 1050 . 200 . 250 . 450 . 450 . . . . 450 . 500 . 450 . . 450 150 . Destroy Structure 1238 | . . 1 . 42 . 37 . 19 . 59 . . 101 4 1 1 62 . 6 12 17 70 74 150 522 60 Partial Spotted 15 | . . . . . 15 . . . . . . . . . . . . . . . . . . . . . Lose Combat Pursuer 405 | . . 45 . 15 30 . . . . 75 . . . . . . 75 . 30 . . . 15 15 30 75 Influence Decreases 19256 | 10 303 694 208 103 1837 227 734 164 424 329 612 486 1701 555 51 63 258 732 594 1084 805 2030 1338 410 1652 1852 Entered New Map 8992 | . . 46 25 23 944 147 416 54 304 69 572 206 502 123 1 29 9 642 234 770 405 1060 429 110 686 1186 Time Decay 4480 | 10 293 488 173 . 238 . 318 . 120 . 40 . 634 262 50 34 . 70 . 214 . 550 214 . 386 386 Lost Part 290 | . 10 10 10 20 . 20 . 10 . 60 . . . 10 . . 10 . . 10 20 . . 20 20 60 Lost Ally 3819 | . . . . 60 80 60 . 100 . 200 . 280 290 160 . . 239 20 360 90 380 120 320 280 560 220 Purge Threat 1675 | . . 150 . . 575 . . . . . . . 275 . . . . . . . . 300 375 . . . Squads Dispatched 60 | . 2 3 3 . 3 . 1 . . . . . 3 . . 1 . 2 . 4 . 6 10 . 14 8 Investigation 8 | . 1 2 . . 1 . . . . . . . 1 . . . . 1 . . . 2 . . . . Extermination 7 | . . . . . . . 1 . . . . . . . . . . . . 1 . . . . 3 2 Reinforcement 22 | . 1 1 1 . 1 . . . . . . . 2 . . 1 . . . 1 . 4 7 . 1 2 Assault 14 | . . . . . . . . . . . . . . . . . . . . . . . . . 10 4 Garrison 9 | . . . 2 . 1 . . . . . . . . . . . . 1 . 2 . . 3 . . . Intercept . | . . . . . . . . . . . . . . . . . . . . . . . . . . . Searches Triggered . | . . . . . . . . . . . . . . . . . . . . . . . . . . . Unchained Authorized 1 | . . . . . . . . . . . . . . . . . . . . . . . 1 . . . Construction Impeded . | . . . . . . . . . . . . . . . . . . . . . . . . . . . Haulers Reinforced 1 | . . . . . . . . . . . . . . . . . . . . . . . 1 . . . Active Scanning Responses . | . . . . . . . . . . . . . . . . . . . . . . . . . . . Cargo Convoy Interrupts . | . . . . . . . . . . . . . . . . . . . . . . . . . . . Stealth | -11 -10 -9 -8 -8 -8 -8 -7 -7 -7 -7 -6 -6 -6 -6 -6 -6 -6 -5 -5 -4 -4 -3 -3 -3 -2 -1 --------- Run | Yrd Mat Mat Mat Gar Mat Gar Fac Gar Fac Gar Fac Gar Ext Cet Arc Hub Gar Fac Gar Fac Gar Res Tes Gar Res Acc Distress Signals 41 | . 3 4 1 . 2 . . 1 . . . . 4 2 . . . . . 1 . 11 8 . 3 1 Communications Jammed 208 | . . . . . . . . . . . . . . . . . . . . . . 29 1 . 149 29 Distress Signals 204 | . . . . . . . . . . . . . . . . . . . . . . 29 1 . 146 28 Times Spotted 594 | . 26 37 14 39 17 24 1 26 . 43 3 22 21 10 1 3 39 6 34 24 35 20 28 30 55 36 Peak Tracking Total 18 | . 6 11 3 5 5 4 1 5 . 6 4 4 3 5 1 2 9 3 10 7 8 5 8 3 7 18 Tactical Retreats 15 | . . 2 . 1 1 . . . . 3 . . . . . . 2 . 1 . . . 1 1 1 2 Traps | -11 -10 -9 -8 -8 -8 -8 -7 -7 -7 -7 -6 -6 -6 -6 -6 -6 -6 -5 -5 -4 -4 -3 -3 -3 -2 -1 ------- Run | Yrd Mat Mat Mat Gar Mat Gar Fac Gar Fac Gar Fac Gar Ext Cet Arc Hub Gar Fac Gar Fac Gar Res Tes Gar Res Acc Traps Triggered 71 | . . 2 . 12 1 2 2 2 . 11 . 6 3 . . . 8 . 10 . 5 1 . 5 . 1 Indirectly . | . . . . . . . . . . . . . . . . . . . . . . . . . . . Trap Hack Attempts . | . . . . . . . . . . . . . . . . . . . . . . . . . . . Triggered . | . . . . . . . . . . . . . . . . . . . . . . . . . . . Disarmed . | . . . . . . . . . . . . . . . . . . . . . . . . . . . Reprogrammed . | . . . . . . . . . . . . . . . . . . . . . . . . . . . Reused . | . . . . . . . . . . . . . . . . . . . . . . . . . . . Traps Extracted . | . . . . . . . . . . . . . . . . . . . . . . . . . . . Installed . | . . . . . . . . . . . . . . . . . . . . . . . . . . . Triggered . | . . . . . . . . . . . . . . . . . . . . . . . . . . . Machines | -11 -10 -9 -8 -8 -8 -8 -7 -7 -7 -7 -6 -6 -6 -6 -6 -6 -6 -5 -5 -4 -4 -3 -3 -3 -2 -1 ---------- Run | Yrd Mat Mat Mat Gar Mat Gar Fac Gar Fac Gar Fac Gar Ext Cet Arc Hub Gar Fac Gar Fac Gar Res Tes Gar Res Acc Machines Disabled 75 | . . 1 . 8 2 3 . 3 . 9 . 5 4 . . 1 7 . 9 . 5 . 4 7 4 3 Max in Single Turn 3 | . . 1 . 2 . 1 . 1 . 1 . 1 3 . . . 1 . 1 . 1 . 1 1 . 2 Garrison Access 3 | . . . . . . . . . . . . . . . . . . . . . . 1 . . 1 1 Garrison Relay 47 | . . . . 8 . 3 . 3 . 5 . 5 . . . . 5 . 8 . 5 . . 5 . . Phase Generator 1 | . . . . . . . . . . . . . . . . . 1 . . . . . . . . . Energy Cycler 3 | . . . . . . . . . . . . . 2 . . . . . . . . . . . . 1 Machines Repaired . | . . . . . . . . . . . . . . . . . . . . . . . . . . . Machines Dismantled . | . . . . . . . . . . . . . . . . . . . . . . . . . . . Machines Sabotaged . | . . . . . . . . . . . . . . . . . . . . . . . . . . . Overloaded Fab Kills . | . . . . . . . . . . . . . . . . . . . . . . . . . . . Hacking | -11 -10 -9 -8 -8 -8 -8 -7 -7 -7 -7 -6 -6 -6 -6 -6 -6 -6 -5 -5 -4 -4 -3 -3 -3 -2 -1 --------- Run | Yrd Mat Mat Mat Gar Mat Gar Fac Gar Fac Gar Fac Gar Ext Cet Arc Hub Gar Fac Gar Fac Gar Res Tes Gar Res Acc Machines Accessed 73 | . 8 2 3 3 6 5 3 4 4 3 1 3 6 . . 1 3 2 1 2 2 4 1 1 2 3 Terminals 54 | . 7 2 2 3 4 5 2 4 1 3 . 3 6 . . . 3 1 1 . 2 1 . 1 1 2 Fabricators 2 | . . . . . . . . . . . . . . . . . . . . . . 2 . . . . Repair Stations 2 | . 1 . . . . . . . . . . . . . . . . . . 1 . . . . . . Recycling Units 1 | . . . . . . . . . 1 . . . . . . . . . . . . . . . . . Scanalyzers 3 | . . . . . 1 . . . 1 . . . . . . . . . . . . 1 . . . . Garrison Access 11 | . . . 1 . 1 . 1 . 1 . 1 . . . . 1 . 1 . 1 . . 1 . 1 1 Total Hacks 153 | . 27 3 6 6 18 8 8 8 8 5 1 9 12 . . 1 6 4 2 3 3 8 1 1 2 3 Successful 63 | . 14 1 3 2 10 3 4 1 3 . 1 . 4 . . 1 2 1 1 3 1 5 1 . 1 1 Failed 90 | . 13 2 3 4 8 5 4 7 5 5 . 9 8 . . . 4 3 1 . 2 3 . 1 1 2 Catastrophic 29 | . 3 1 1 2 2 2 . 3 1 3 . 1 4 . . . . . . . 1 1 . 1 1 2 Database Lockouts . | . . . . . . . . . . . . . . . . . . . . . . . . . . . Manual 48 | . 21 3 3 . 8 . 5 1 5 . . . 1 . . . . . . . . 1 . . . . Terminals 118 | . 22 3 3 6 10 8 7 8 3 5 . 9 12 . . . 6 3 2 . 3 4 . 1 1 2 Fabricators 3 | . . . . . . . . . . . . . . . . . . . . . . 3 . . . . Repair Stations 7 | . 5 . . . . . . . . . . . . . . . . . . 2 . . . . . . Recycling Units 2 | . . . . . . . . . 2 . . . . . . . . . . . . . . . . . Scanalyzers 10 | . . . . . 7 . . . 2 . . . . . . . . . . . . 1 . . . . Garrison Access 13 | . . . 3 . 1 . 1 . 1 . 1 . . . . 1 . 1 . 1 . . 1 . 1 1 Terminal Hacks 29 | . 6 1 1 2 3 3 1 1 . . . . 4 . . . 2 . 1 . 1 3 . . . . Part Schematic 1 | . 1 . . . . . . . . . . . . . . . . . . . . . . . . . Robot Analysis 2 | . 2 . . . . . . . . . . . . . . . . . . . . . . . . . Prototype ID Bank 2 | . 1 . . . 1 . . . . . . . . . . . . . . . . . . . . . Open Door 6 | . . . . 1 . . . . . . . . 4 . . . 1 . . . . . . . . . Branch Access Points 2 | . 1 . . . . . . . . . . . . . . . . . . . . 1 . . . . Emergency Access Points 3 | . . . . 1 . 1 . . . . . . . . . . 1 . . . . . . . . . Unreport Threat 6 | . . 1 1 . 2 . . . . . . . . . . . . . . . . 2 . . . . Locate Traps 1 | . . . . . . . 1 . . . . . . . . . . . . . . . . . . . Hauler Manifests 1 | . 1 . . . . . . . . . . . . . . . . . . . . . . . . . Garrison Registry 3 | . . . . . . 1 . 1 . . . . . . . . . . . . 1 . . . . . Patrol Navigation 2 | . . . . . . 1 . . . . . . . . . . . . 1 . . . . . . . Fabricator Hacks 2 | . . . . . . . . . . . . . . . . . . . . . . 2 . . . . Build 2 | . . . . . . . . . . . . . . . . . . . . . . 2 . . . . Repair Station Hacks 4 | . 2 . . . . . . . . . . . . . . . . . . 2 . . . . . . Scan Component 2 | . 1 . . . . . . . . . . . . . . . . . . 1 . . . . . . Repair 2 | . 1 . . . . . . . . . . . . . . . . . . 1 . . . . . . Recycling Unit Hacks . | . . . . . . . . . . . . . . . . . . . . . . . . . . . Scanalyzer 7 | . . . . . 6 . . . 1 . . . . . . . . . . . . . . . . . Insert Component 1 | . . . . . 1 . . . . . . . . . . . . . . . . . . . . . Analyze 1 | . . . . . 1 . . . . . . . . . . . . . . . . . . . . . Retrieve Study 5 | . . . . . 4 . . . 1 . . . . . . . . . . . . . . . . . Garrison Access Hacks 11 | . . . 1 . 1 . 1 . 1 . 1 . . . . 1 . 1 . 1 . . 1 . 1 1 Unlock Access 10 | . . . 1 . 1 . 1 . 1 . 1 . . . . 1 . 1 . 1 . . 1 . 1 . Seal Access 1 | . . . . . . . . . . . . . . . . . . . . . . . . . . 1 Unauthorized Hacks 10 | . 6 . 1 . . . 2 . 1 . . . . . . . . . . . . . . . . . Terminals 8 | . 5 . 1 . . . 2 . . . . . . . . . . . . . . . . . . . Botnet 3 | . 2 . . . . . 1 . . . . . . . . . . . . . . . . . . . Operators 1 | . . . . . . . 1 . . . . . . . . . . . . . . . . . . . Skim 4 | . 3 . 1 . . . . . . . . . . . . . . . . . . . . . . . Fabricators . | . . . . . . . . . . . . . . . . . . . . . . . . . . . Repair Stations 1 | . 1 . . . . . . . . . . . . . . . . . . . . . . . . . Patch 1 | . 1 . . . . . . . . . . . . . . . . . . . . . . . . . Recycling Units 1 | . . . . . . . . . 1 . . . . . . . . . . . . . . . . . Recyclers 1 | . . . . . . . . . 1 . . . . . . . . . . . . . . . . . Scanalyzers . | . . . . . . . . . . . . . . . . . . . . . . . . . . . Garrison Access . | . . . . . . . . . . . . . . . . . . . . . . . . . . . Data Cores Recovered 2 | . . . . . 1 . . . . . . . . . . . . . . . . 1 . . . . Used . | . . . . . . . . . . . . . . . . . . . . . . . . . . . Hacking Detections 59 | . 8 2 3 2 5 4 2 3 3 3 . 3 3 . . . 2 2 1 1 2 4 1 1 2 2 Full Trace Events 10 | . . . . 1 . 1 . 2 . . . 2 1 . . . 1 1 . . . 1 . . . . Feedback Events . | . . . . . . . . . . . . . . . . . . . . . . . . . . . Feedback Blocked . | . . . . . . . . . . . . . . . . . . . . . . . . . . . Robot Schematics Acquired . | . . . . . . . . . . . . . . . . . . . . . . . . . . . Robots Built 1 | . . . . . . . . . . . . . . . . . . . . . . 1 . . . . Authchips . | . . . . . . . . . . . . . . . . . . . . . . . . . . . Time 62 | . . . . . . . . . . . . . . . . . . . . . . 62 . . . . Total Robot Build Rating 7 | . . . . . . . . . . . . . . . . . . . . . . 7 . . . . Part Schematics Acquired 5 | . 1 . . . 1 . . . . . . . . . . . . . . . . . 3 . . . Parts Built 1 | . . . . . . . . . . . . . . . . . . . . . . 1 . . . . Authchips . | . . . . . . . . . . . . . . . . . . . . . . . . . . . Time 222 | . . . . . . . . . . . . . . . . . . . . . . 222 . . . . Total Part Build Rating 9 | . . . . . . . . . . . . . . . . . . . . . . 9 . . . . Part Studies Acquired 4 | . . . . . 3 . . . 1 . . . . . . . . . . . . . . . . . Parts Repaired 2 | . 1 . . . . . . . . . . . . . . . . . . 1 . . . . . . Time 80 | . 36 . . . . . . . . . . . . . . . . . . 44 . . . . . . Parts Recycled . | . . . . . . . . . . . . . . . . . . . . . . . . . . . Recycled Matter . | . . . . . . . . . . . . . . . . . . . . . . . . . . . Retrieved Matter . | . . . . . . . . . . . . . . . . . . . . . . . . . . . Retrieved Components . | . . . . . . . . . . . . . . . . . . . . . . . . . . . Parts Scanalyzed 1 | . . . . . 1 . . . . . . . . . . . . . . . . . . . . . Part Schematics Acquired 1 | . . . . . 1 . . . . . . . . . . . . . . . . . . . . . Parts Damaged . | . . . . . . . . . . . . . . . . . . . . . . . . . . . Bothacking | -11 -10 -9 -8 -8 -8 -8 -7 -7 -7 -7 -6 -6 -6 -6 -6 -6 -6 -5 -5 -4 -4 -3 -3 -3 -2 -1 ------------ Run | Yrd Mat Mat Mat Gar Mat Gar Fac Gar Fac Gar Fac Gar Ext Cet Arc Hub Gar Fac Gar Fac Gar Res Tes Gar Res Acc Used RIF Installer 10 | . . . . 1 . 1 . 1 . 1 . 1 . . . . 1 . 1 . 2 . . 1 . . Coupler Efficiency 2 | . . . . . . . . . . . . 1 . . . . 1 . . . . . . . . . Code Merge 1 | . . . . . . . . . . . . . . . . . . . . . 1 . . . . . Signal Jammer 1 | . . . . . . . . . . . . . . . . . . . . . . . . 1 . . Structural Interface 1 | . . . . . . 1 . . . . . . . . . . . . . . . . . . . . Autooverride 1 | . . . . . . . . 1 . . . . . . . . . . . . . . . . . . Autoassimilate 2 | . . . . . . . . . . 1 . . . . . . . . 1 . . . . . . . Crosswire 1 | . . . . . . . . . . . . . . . . . . . . . 1 . . . . . Robots Hacked 269 | . . . . 5 5 4 . 11 . 20 2 19 15 . 2 2 17 3 21 15 23 7 20 28 39 11 Non-combat 14 | . . . . . 1 . . . . . . . 3 . . . . . . 2 . . 1 . 7 . Combat 255 | . . . . 5 4 4 . 11 . 20 2 19 12 . 2 2 17 3 21 13 23 7 19 28 32 11 Autooverrided 34 | . . . . . . . . . . 2 1 1 3 . . . 3 . 4 1 4 1 1 3 8 2 Autoassimilated 76 | . . . . . . . . . . 3 1 6 3 . . . 2 1 2 7 8 4 7 13 16 3 Robot Hacks Applied 179 | . . . . 5 9 4 . 11 . 16 . 13 12 . 2 2 16 2 15 8 11 2 17 12 15 7 parse_system 3 | . . . . . . . . . . 1 . . . . . . 1 . . . . . 1 . . . no_distress 1 | . . . . . . . . . . . . . 1 . . . . . . . . . . . . . find_chute 1 | . . . . . . . . . . . . . . . . . . . . 1 . . . . . . drop_inventory 2 | . . . . . . . . . . . . . . . . . . . . . . . . . 2 . purge_threat 7 | . . . . . 2 . . . . . . . 2 . . . . . . . . . 3 . . . summon_haulers 2 | . . . . . 1 . . . . . . . . . . . . . . . . . 1 . . . recall_investigation 1 | . . . . . 1 . . . . . . . . . . . . . . . . . . . . . map_route 3 | . . . . . . . . . . . . . . . . . . . . . . . . . 3 . find_garrison 3 | . . . . . 1 . . . . . . . . . . . . . . 1 . . . . . 1 spike_heat 3 | . . . . . . . . 1 . . . 1 . . . . . 1 . . . . . . . . overload_power 2 | . . . . . . . . 1 . . . . . . . . . . . . . . 1 . . . amplify_resonance 14 | . . . . . . 1 . 2 . 1 . 1 . . . . 3 1 1 1 . . 1 1 . 1 wipe_record 4 | . . . . . 1 . . . . 3 . . . . . . . . . . . . . . . . disable_weapons 2 | . . . . . . . . 1 . . . . . . . . 1 . . . . . . . . . go_dormant 1 | . . . . . . . . . . . . 1 . . . . . . . . . . . . . . overwrite_iff 26 | . . . . . . 2 . 1 . 2 . 3 . . 1 . 1 . 7 . 2 . 3 2 2 . streamctrl_low 2 | . . . . . . . . . . . . . 2 . . . . . . . . . . . . . streamctrl_high 8 | . . . . 1 . . . . . 2 . 2 1 . . 1 . . . . . . . . . 1 formatsys_low 5 | . . . . . . . . . . . . . 1 . . . . . . 1 . . 1 . 2 . formatsys_high 87 | . . . . 4 3 1 . 5 . 7 . 5 5 . 1 1 10 . 7 4 8 2 6 9 5 4 formatsys_deep 2 | . . . . . . . . . . . . . . . . . . . . . 1 . . . 1 . Relay Couplers Released 192 | . . . . 28 . 14 . 13 . 22 . 20 . . . . 18 . 33 . 19 1 . 22 2 . Machine Destruction 192 | . . . . 28 . 14 . 13 . 22 . 20 . . . . 18 . 33 . 19 1 . 22 2 . Attached 88 | . . . . 4 5 2 . 8 . 10 1 7 1 . 1 1 7 2 11 3 6 3 2 5 5 4 Crosswired 22 | . . . . . . . . . . . . . . . . . . . . . 12 . . 10 . . Merged Code Value 360 | . . . . . . . . . . . . . . . . . . . . . 199 9 . 143 9 . Fabnet Peak Effective % . | . . . . . . . . . . . . . . . . . . . . . . . . . . . Robots Rewired 33 | . . . . . . . . . . 4 . . 10 . . . 7 . 6 2 . . . 4 . . Allies Hacked 11 | . . . . . . . . . . . . . . . . . . . . . 3 1 . . 3 4 Hacks Repelled . | . . . . . . . . . . . . . . . . . . . . . . . . . . . Allies | -11 -10 -9 -8 -8 -8 -8 -7 -7 -7 -7 -6 -6 -6 -6 -6 -6 -6 -5 -5 -4 -4 -3 -3 -3 -2 -1 -------- Run | Yrd Mat Mat Mat Gar Mat Gar Fac Gar Fac Gar Fac Gar Ext Cet Arc Hub Gar Fac Gar Fac Gar Res Tes Gar Res Acc Total Allies 294 | . . . . 7 3 3 . 6 . 20 2 17 29 . 2 2 24 1 28 15 28 8 18 33 38 10 Largest Group 23 | . . . . 3 2 1 . 2 1 6 8 9 18 14 7 8 11 12 15 22 23 16 6 14 13 6 Highest-Rated Group 1074 | . . . . 45 37 21 . 32 32 164 188 217 489 404 225 256 328 357 558 969 1074 821 454 862 789 402 Highest-Rated Ally 219 | . . . . 25 21 21 . 32 32 32 32 41 41 41 49 49 49 41 95 142 142 142 142 116 183 219 Total Orders 42 | . . . . . . . . . . . . . 20 5 . . . . . . 4 2 3 3 4 1 STAY 6 | . . . . . . . . . . . . . 4 . . . . . . . 2 . . . . . ROAM 8 | . . . . . . . . . . . . . . 2 . . . . . . . 1 2 1 2 . FOLLOW 15 | . . . . . . . . . . . . . 9 1 . . . . . . 2 1 . 2 . . GUARD 1 | . . . . . . . . . . . . . . 1 . . . . . . . . . . . . AID 5 | . . . . . . . . . . . . . . 1 . . . . . . . . 1 . 2 1 TUNNEL 7 | . . . . . . . . . . . . . 7 . . . . . . . . . . . . . Ally Attacks 1632 | . . . . 20 38 6 . 22 . 45 9 83 163 88 7 3 101 16 137 119 145 98 108 94 280 50 Total Damage 49992 | . . . . 501 804 72 . 682 . 903 62 1977 3087 1873 225 41 3090 521 4253 2535 4315 3570 4794 3365 11515 1807 Kills 345 | . . . . 4 9 . . 7 . 8 2 14 19 8 3 1 29 3 25 24 34 22 32 24 69 8 Allies Corrupted 10 | . . . . . . . . . . . . . . . . . . . . . . 1 . 1 6 2 Allies Melted 5 | . . . . 1 . . . . . . . 1 . . . . . . 2 . 1 . . . . . Intel | -11 -10 -9 -8 -8 -8 -8 -7 -7 -7 -7 -6 -6 -6 -6 -6 -6 -6 -5 -5 -4 -4 -3 -3 -3 -2 -1 ------- Run | Yrd Mat Mat Mat Gar Mat Gar Fac Gar Fac Gar Fac Gar Ext Cet Arc Hub Gar Fac Gar Fac Gar Res Tes Gar Res Acc Active Infowar (turns) 7183 | 70 1760 1173 . . . . . . . 1 . . . . . . . . . . . 1322 365 720 1057 715 Optics 2493 | . . . . . . . . . . 1 . . . . . . . . . . . . . 720 1057 715 Seismic 2509 | 70 1760 679 . . . . . . . . . . . . . . . . . . . . . . . . T.N.C. 1172 | . . 1172 . . . . . . . . . . . . . . . . . . . . . . . . Jamming 1687 | . . . . . . . . . . . . . . . . . . . . . . 1322 365 . . . Robot Analysis Total 2 | . 2 . . . . . . . . . . . . . . . . . . . . . . . . . Derelict Logs Recovered . | . . . . . . . . . . . . . . . . . . . . . . . . . . . Drone Launches . | . . . . . . . . . . . . . . . . . . . . . . . . . . . Drone Recoveries . | . . . . . . . . . . . . . . . . . . . . . . . . . . . Exploration | -11 -10 -9 -8 -8 -8 -8 -7 -7 -7 -7 -6 -6 -6 -6 -6 -6 -6 -5 -5 -4 -4 -3 -3 -3 -2 -1 ------------- Run | Yrd Mat Mat Mat Gar Mat Gar Fac Gar Fac Gar Fac Gar Ext Cet Arc Hub Gar Fac Gar Fac Gar Res Tes Gar Res Acc Turns Passed 28644 | 168 1760 1674 385 2562 517 963 712 1095 240 1973 95 1446 2234 564 132 133 1650 156 1735 454 2009 1585 450 1977 1057 918 Spaces Moved 13731 | 84 709 582 104 1102 243 423 387 646 163 909 40 847 1067 233 63 79 870 77 924 213 965 699 210 937 490 665 Core 362 | 2 . . . . . . . . . . . . . . . . . . . . . . . . . 360 Treads 1944 | 82 709 582 104 233 . 1 . . . 65 . . . 14 . . 3 . 3 . 17 . . . . 131 Legs . | . . . . . . . . . . . . . . . . . . . . . . . . . . . Wheels 11425 | . . . . 869 243 422 387 646 163 844 40 847 1067 219 63 79 867 77 921 213 948 699 210 937 490 174 Hover . | . . . . . . . . . . . . . . . . . . . . . . . . . . . Flight . | . . . . . . . . . . . . . . . . . . . . . . . . . . . Fastest Speed 50 | 50 160 160 240 145 145 145 145 145 135 135 135 135 135 135 150 150 150 150 150 150 150 180 165 165 180 50 Average Speed 162 | 157 221 228 240 165 145 145 145 145 142 146 135 141 146 155 150 150 150 150 150 150 171 180 166 179 180 120 Slowest Speed 280 | 160 240 240 240 240 145 272 145 145 145 280 135 150 150 250 150 150 240 150 240 150 250 180 180 180 180 237 Overloaded Moves . | . . . . . . . . . . . . . . . . . . . . . . . . . . . Propulsion Burnouts . | . . . . . . . . . . . . . . . . . . . . . . . . . . . Robots Hopped . | . . . . . . . . . . . . . . . . . . . . . . . . . . . Potential Cave-ins 7 | . . . . . . . . . . . . . 7 . . . . . . . . . . . . . Cave-ins Triggered . | . . . . . . . . . . . . . . . . . . . . . . . . . . . Exploration Rate (%) 50 | 6 94 52 18 76 37 63 14 73 8 93 3 96 86 56 79 13 91 2 83 10 93 25 38 96 24 23 Regions Visited 26 Branch Regions 5 Pre-discovered Areas . | . . . . . . . . . . . . . . . . . . . . . . . . . . . Known Exits Taken 10 | . . . 1 . 1 . 1 . 1 . 1 . . . . 1 . 1 . 1 . 1 1 . . . Unknown Exits Taken 7 | 1 1 1 . . . . . . . . . . 1 1 1 . . . . . . . . . 1 . Scrap Searched . | . . . . . . . . . . . . . . . . . . . . . . . . . . . Spaces Dug 81 | . . . . 30 . 18 . 7 . 6 . . 3 . . . 10 . . . . . . 2 2 3 Terrain Destroyed 224 | . . . . 30 . 29 . 29 . 62 . . 39 3 . . 10 . . . . . . 3 4 15 Melee 10 | . . . . . . . . . . . . . 3 . . . . . . . . . . 2 2 3 Projectile 16 | . . . . . . . . . . 3 . . 7 3 . . . . . . . . . 1 2 . AOE 198 | . . . . 30 . 29 . 29 . 59 . . 29 . . . 10 . . . . . . . . 12 Terrain Rammed . | . . . . . . . . . . . . . . . . . . . . . . . . . . . Walls Destroyed . | . . . . . . . . . . . . . . . . . . . . . . . . . . . Machines Disabled . | . . . . . . . . . . . . . . . . . . . . . . . . . . . Actions | -11 -10 -9 -8 -8 -8 -8 -7 -7 -7 -7 -6 -6 -6 -6 -6 -6 -6 -5 -5 -4 -4 -3 -3 -3 -2 -1 --------- Run | Yrd Mat Mat Mat Gar Mat Gar Fac Gar Fac Gar Fac Gar Ext Cet Arc Hub Gar Fac Gar Fac Gar Res Tes Gar Res Acc Total 18673 | 107 821 762 186 1551 386 601 536 772 173 1385 78 1026 1678 398 101 93 1173 117 1244 345 1210 1027 311 1205 640 747 Wait 2275 | . 39 20 37 61 79 20 133 38 . 124 33 49 482 124 27 5 92 36 124 103 94 302 55 112 74 12 Move 13710 | 83 708 581 104 1101 243 422 387 644 163 908 39 846 1066 232 62 79 869 77 923 212 964 698 210 936 489 664 Hop . | . . . . . . . . . . . . . . . . . . . . . . . . . . . Pick Up 260 | 5 13 29 7 26 8 16 5 9 4 31 1 13 . 5 2 . 16 . 14 . 22 4 . 18 5 7 Fast Attach 66 | 7 1 4 . 1 2 2 4 5 . 8 . 2 2 5 . 2 2 . 1 1 6 3 2 3 . 3 Attach 120 | . 2 6 3 14 5 11 . 2 2 12 2 3 2 . 1 . 7 2 3 4 7 3 4 6 6 13 Detach 4 | . . . . . . . . . . . . . . . . . . . . . . . 2 . . 2 Swap 185 | . 2 8 4 17 13 11 . 17 . 30 1 9 7 2 4 1 14 . 11 . 8 4 2 5 10 5 Drop 240 | . 5 18 5 31 12 14 5 12 4 34 . 16 3 9 1 2 15 . 11 . 16 7 6 12 1 1 Fire 1049 | 12 48 92 23 237 7 83 2 33 . 163 . 22 62 21 4 3 35 2 25 21 28 4 27 20 43 32 Melee 189 | . . . . 5 14 7 . 2 . 9 1 32 20 . . . 11 . 13 1 49 . 1 15 6 3 Ram 3 | . . . . . 1 . . . . . . . 1 . . . . . . . . . . . 1 . Kick . | . . . . . . . . . . . . . . . . . . . . . . . . . . . Crush 14 | . 3 4 3 . . . . . . . . . . . . . . . . . . . . . . 4 Escape Stasis 288 | . . . . 54 . 15 . 8 . 46 . 32 32 . . . 31 . 41 . 13 . . 16 . . Rewire 270 | . . . . 4 2 . . 2 . 20 1 2 1 . . 1 81 . 78 3 3 2 2 62 5 1 Trap . | . . . . . . . . . . . . . . . . . . . . . . . . . . . Miscellaneous . | . . . . . . . . . . . . . . . . . . . . . . . . . . . Route ------- -11/Scrapyard -10/Materials (discovered 4 exits: *Mat x3 / *Min) -9/Materials (discovered 2 exits: *Mat x2) -8/Materials -8/Garrison (discovered 3 exits: *Mat x3) -8/Materials -8/Garrison (discovered 3 exits: *Fac x3) -7/Factory (discovered 2 exits: [*Low] / Gar) -7/Garrison (discovered 3 exits: *Fac x3) -7/Factory -7/Garrison (discovered 3 exits: *Fac x3) -6/Factory -6/Garrison (discovered 3 exits: *Ext x3) -6/Extension (discovered 3 exits: *Fac x2 / *Cet) -6/Cetus (discovered 2 exits: *Fac / [*Arc]) -6/Archives (discovered 3 exits: *Fac / *Hub x2) -6/Hub_04(d) -6/Garrison (discovered 3 exits: *Fac x3) -5/Factory -5/Garrison (discovered 3 exits: *Fac x3) -4/Factory -4/Garrison (discovered 3 exits: *Res x3) -3/Research (discovered 2 exits: *Tes x2) -3/Testing -3/Garrison (discovered 3 exits: *Res x3) -2/Research -1/Access To Epsilon Eridani History --------- Turn | Location | Event 7 | -11/Scrapyard | Discovered new exit (range 14) 169 | -11/Scrapyard | Entered Materials 303 | -10/Materials | Build established: Mutant 367 | -10/Materials | Repaired Corrupted Lgt. Assault Rifle 570 | -10/Materials | Identified exit to Mines 808 | -10/Materials | Discovered new exit (range 13) 1222 | -10/Materials | Discovered new exit (range 11) 1881 | -10/Materials | Discovered new exit (range 15) 1929 | -10/Materials | Entered another Materials area 1929 | -9/Materials | Evolved 2 slots: Propulsion x1, Utility x1 2061 | -9/Materials | Build established: Scavenger-Mutant 2739 | -9/Materials | Discovered new exit (range 16) 2883 | -9/Materials | Build established: Mutant 3082 | -9/Materials | Destroyed 7 combat bots 3308 | -9/Materials | Discovered new exit (range 6) 3603 | -9/Materials | Entered another Materials area 3603 | -8/Materials | Evolved 2 slots: Propulsion x1, Utility x1 3760 | -8/Materials | Garrison activated, responded to threat 3910 | -8/Materials | Garrison activated, responded to threat 3929 | -8/Materials | Build established: Scavenger-Mutant 3988 | -8/Materials | Identified exit to Garrison 3988 | -8/Materials | Entered Garrison 4064 | -8/Garrison | Triggered checkpoint 4148 | -8/Garrison | Garrison Relay disabled 4212 | -8/Garrison | Rescued a captive Derelict 4213 | -8/Garrison | Rescued a captive Derelict 4350 | -8/Garrison | Triggered checkpoint 4403 | -8/Garrison | Triggered checkpoint 4574 | -8/Garrison | Installed Relay Interface Framework 4631 | -8/Garrison | Garrison Relay disabled 4678 | -8/Garrison | Triggered checkpoint 4838 | -8/Garrison | Triggered checkpoint 4933 | -8/Garrison | Build established: Bothacker-Mutant 5008 | -8/Garrison | Triggered checkpoint 5184 | -8/Garrison | Triggered checkpoint 5280 | -8/Garrison | Triggered checkpoint 5289 | -8/Garrison | Garrison Relay disabled 5389 | -8/Garrison | Discovered new exit (range 10) 5516 | -8/Garrison | Triggered checkpoint 5562 | -8/Garrison | Garrison Relay disabled 5598 | -8/Garrison | Discovered new exit (range 14) 5832 | -8/Garrison | Garrison Relay disabled 5850 | -8/Garrison | Garrison Relay disabled 5850 | -8/Garrison | Garrison Relay disabled 5862 | -8/Garrison | Garrison Relay disabled 6062 | -8/Garrison | Discovered new exit (range 14) 6549 | -8/Garrison | Identified exit to Materials 6550 | -8/Garrison | Entered Materials 6550 | -8/Materials | Accompanied by 2 allies 6970 | -8/Materials | Garrison activated, responded to threat 7063 | -8/Materials | Identified exit to Garrison 7067 | -8/Materials | Entered Garrison 7067 | -8/Garrison | Accompanied by 1 ally 7121 | -8/Garrison | Triggered checkpoint 7165 | -8/Garrison | Garrison Relay disabled 7222 | -8/Garrison | Discovered new exit (range 67) 7222 | -8/Garrison | Discovered new exit (range 55) 7222 | -8/Garrison | Discovered new exit (range 44) 7238 | -8/Garrison | System corruption reached 10% 7319 | -8/Garrison | Triggered checkpoint 7420 | -8/Garrison | Expanded RIF knowledge: Structural Interface 7463 | -8/Garrison | Triggered checkpoint 7528 | -8/Garrison | Garrison Relay disabled 7609 | -8/Garrison | Triggered checkpoint 7903 | -8/Garrison | Garrison Relay disabled 8030 | -8/Garrison | Entered Factory 8030 | -7/Factory | Evolved 2 slots: Utility x2 8296 | -7/Factory | Discovered new exit (range 6) 8742 | -7/Factory | Identified exit to Garrison 8742 | -7/Factory | Entered Garrison 8758 | -7/Garrison | Discovered new exit (range 42) 8758 | -7/Garrison | Discovered new exit (range 62) 8758 | -7/Garrison | Discovered new exit (range 81) 8949 | -7/Garrison | Garrison Relay disabled 9118 | -7/Garrison | Triggered checkpoint 9140 | -7/Garrison | Triggered checkpoint 9179 | -7/Garrison | Garrison Relay disabled 9252 | -7/Garrison | Expanded RIF knowledge: Autooverride 9456 | -7/Garrison | Triggered checkpoint 9509 | -7/Garrison | Garrison Relay disabled 9833 | -7/Garrison | Identified exit to Factory 9837 | -7/Garrison | Entered Factory 9837 | -7/Factory | Accompanied by 1 ally 10077 | -7/Factory | Identified exit to Garrison 10077 | -7/Factory | Entered Garrison 10077 | -7/Garrison | Accompanied by 1 ally 10127 | -7/Garrison | Triggered checkpoint 10146 | -7/Garrison | Heavy support dispatched to Factory 10232 | -7/Garrison | Lost 6 parts (1n4u1w) 10292 | -7/Garrison | Garrison Relay disabled 10315 | -7/Garrison | Heavy support dispatched to Factory 10421 | -7/Garrison | H-XX Assembler disabled 10619 | -7/Garrison | Triggered checkpoint 10620 | -7/Garrison | Triggered checkpoint 10661 | -7/Garrison | Triggered checkpoint 10723 | -7/Garrison | Destroyed 7 combat bots 10820 | -7/Garrison | Garrison Relay disabled 10839 | -7/Garrison | Triggered checkpoint 10904 | -7/Garrison | Garrison Relay disabled 10930 | -7/Garrison | Discovered new exit (range 10) 11135 | -7/Garrison | Expanded RIF knowledge: Autoassimilate 11298 | -7/Garrison | Discovered new exit (range 5) 11325 | -7/Garrison | Triggered checkpoint 11369 | -7/Garrison | Garrison Relay disabled 11443 | -7/Garrison | Build established: Botlord-Mutant 11481 | -7/Garrison | Triggered checkpoint 11515 | -7/Garrison | Discovered new exit (range 13) 11527 | -7/Garrison | Lost 5 allies 11571 | -7/Garrison | Garrison Relay disabled 12050 | -7/Garrison | Entered Factory 12050 | -6/Factory | Accompanied by 6 allies 12050 | -6/Factory | Evolved 2 slots: Utility x2 12115 | -6/Factory | Identified exit to Garrison 12145 | -6/Factory | Entered Garrison 12145 | -6/Garrison | Accompanied by 7 allies 12195 | -6/Garrison | Triggered checkpoint 12216 | -6/Garrison | Garrison Relay disabled 12343 | -6/Garrison | Triggered checkpoint 12379 | -6/Garrison | Triggered checkpoint 12450 | -6/Garrison | Triggered checkpoint 12474 | -6/Garrison | Garrison Relay disabled 12486 | -6/Garrison | Lost 11 allies 12501 | -6/Garrison | Triggered checkpoint 12528 | -6/Garrison | Garrison Relay disabled 12586 | -6/Garrison | Discovered new exit (range 13) 12822 | -6/Garrison | Garrison Relay disabled 12845 | -6/Garrison | Expanded RIF knowledge: Coupler Efficiency 12905 | -6/Garrison | Discovered new exit (range 10) 12942 | -6/Garrison | Spotted B-75 Beast 12958 | -6/Garrison | Destroyed B-75 Beast 12986 | -6/Garrison | Lost 3 allies 13175 | -6/Garrison | Triggered checkpoint 13202 | -6/Garrison | Discovered new exit (range 9) 13446 | -6/Garrison | Garrison Relay disabled 13591 | -6/Garrison | Entered Extension 13591 | -6/Extension | Accompanied by 6 allies 14236 | -6/Extension | Rescued a captive Derelict 14239 | -6/Extension | Rescued a captive Derelict 14600 | -6/Extension | Rescued a captive Derelict 14635 | -6/Extension | Rescued a captive Derelict 14636 | -6/Extension | Rescued a captive Derelict 14965 | -6/Extension | Rescued a captive Derelict 15125 | -6/Extension | Energy Cycler disabled 15126 | -6/Extension | Rescued a captive Derelict 15128 | -6/Extension | Rescued a captive Derelict 15225 | -6/Extension | Discovered new exit (range 10) 15226 | -6/Extension | Discovered new exit (range 6) 15553 | -6/Extension | Spotted B-75 Beast 15563 | -6/Extension | Destroyed B-75 Beast 15580 | -6/Extension | Discovered new exit (range 15) 15581 | -6/Extension | Spotted B-75 Beast 15601 | -6/Extension | Allies destroyed B-75 Beast 15625 | -6/Extension | Extracted ID and sensor layout for unrecognized location from A7's data core 15825 | -6/Extension | Entered Cetus 15825 | -6/Cetus | Accompanied by 14 allies 15854 | -6/Cetus | Spotted Cetus Guard 15854 | -6/Cetus | Spotted Cetus Guard 15855 | -6/Cetus | Spotted Cetus Guard 15855 | -6/Cetus | Spotted Cetus Guard 15870 | -6/Cetus | Allies destroyed Cetus Guard 15884 | -6/Cetus | Destroyed Cetus Guard 15885 | -6/Cetus | Allies destroyed Cetus Guard 15888 | -6/Cetus | Allies destroyed Cetus Guard 15907 | -6/Cetus | Lost 6 allies 15992 | -6/Cetus | Discovered new exit (range 15) 16047 | -6/Cetus | Spotted Cetus Guard 16047 | -6/Cetus | Spotted Cetus Guard 16052 | -6/Cetus | Spotted Cetus Guard 16055 | -6/Cetus | Destroyed Cetus Guard 16063 | -6/Cetus | Allies destroyed Cetus Guard 16063 | -6/Cetus | Spotted Cetus Guard 16079 | -6/Cetus | Allies destroyed Cetus Guard 16080 | -6/Cetus | Allies destroyed Cetus Guard 16097 | -6/Cetus | Lost 3 allies 16109 | -6/Cetus | Discovered new exit (range 16) 16124 | -6/Cetus | Met Revision 17 16389 | -6/Cetus | Entered Archives 16389 | -6/Archives | Accompanied by 5 allies 16437 | -6/Archives | Discovered new exit (range 15) 16455 | -6/Archives | Discovered new exit (range 15) 16474 | -6/Archives | Discovered new exit (range 16) 16521 | -6/Archives | Entered Hub_04(d) 16521 | -6/Hub_04(d) | Accompanied by 6 allies 16654 | -6/Hub_04(d) | Identified exit to Garrison 16654 | -6/Hub_04(d) | Entered Garrison 16654 | -6/Garrison | Accompanied by 7 allies 16680 | -6/Garrison | Spotted B-86 Titan 16694 | -6/Garrison | Triggered checkpoint 16746 | -6/Garrison | Garrison Relay disabled 16824 | -6/Garrison | Triggered checkpoint 16842 | -6/Garrison | Triggered checkpoint 16862 | -6/Garrison | Triggered checkpoint 16905 | -6/Garrison | Lost 6 allies 16918 | -6/Garrison | Spotted B-75 Beast 16940 | -6/Garrison | Allies destroyed B-75 Beast 16976 | -6/Garrison | Garrison Relay disabled 16980 | -6/Garrison | Lost 4 allies 17053 | -6/Garrison | Discovered new exit (range 14) 17121 | -6/Garrison | Garrison Relay disabled 17140 | -6/Garrison | Triggered checkpoint 17386 | -6/Garrison | Triggered checkpoint 17394 | -6/Garrison | Lost 3 allies 17438 | -6/Garrison | Garrison Relay disabled 17443 | -6/Garrison | Phase Generator disabled 17577 | -6/Garrison | Discovered new exit (range 16) 17920 | -6/Garrison | Rescued a captive Derelict 17921 | -6/Garrison | Rescued a captive Derelict 17972 | -6/Garrison | Expanded RIF knowledge: Coupler Efficiency 17987 | -6/Garrison | Discovered new exit (range 5) 18032 | -6/Garrison | Garrison Relay disabled 18304 | -6/Garrison | Entered Factory 18304 | -5/Factory | Accompanied by 11 allies 18304 | -5/Factory | Evolved 2 slots: Utility x2 18382 | -5/Factory | Garrison activated, responded to threat 18428 | -5/Factory | Identified exit to Garrison 18460 | -5/Factory | Entered Garrison 18460 | -5/Garrison | Accompanied by 11 allies 18462 | -5/Garrison | Triggered checkpoint 18504 | -5/Garrison | Garrison Relay disabled 18547 | -5/Garrison | Triggered checkpoint 18558 | -5/Garrison | Triggered checkpoint 18565 | -5/Garrison | Garrison Relay disabled 18592 | -5/Garrison | Spotted B-75 Beast 18604 | -5/Garrison | Triggered checkpoint 18617 | -5/Garrison | Allies destroyed B-75 Beast 18664 | -5/Garrison | Lost 15 allies 18725 | -5/Garrison | Garrison Relay disabled 18741 | -5/Garrison | Triggered checkpoint 18779 | -5/Garrison | Expanded RIF knowledge: Autoassimilate 18800 | -5/Garrison | Discovered new exit (range 2) 18986 | -5/Garrison | Found embedded Infiltrators 19018 | -5/Garrison | Discovered new exit (range 12) 19030 | -5/Garrison | Triggered checkpoint 19058 | -5/Garrison | Triggered checkpoint 19077 | -5/Garrison | Garrison Relay disabled 19327 | -5/Garrison | Garrison Relay disabled 19492 | -5/Garrison | Triggered checkpoint 19515 | -5/Garrison | Garrison Relay disabled 19586 | -5/Garrison | Triggered checkpoint 19741 | -5/Garrison | Discovered new exit (range 10) 19744 | -5/Garrison | Triggered checkpoint 19785 | -5/Garrison | Garrison Relay disabled 19794 | -5/Garrison | Triggered checkpoint 19964 | -5/Garrison | Garrison Relay disabled 19990 | -5/Garrison | Triggered checkpoint 20014 | -5/Garrison | Triggered checkpoint 20195 | -5/Garrison | Entered Factory 20195 | -4/Factory | Accompanied by 15 allies 20195 | -4/Factory | Evolved 2 slots: Utility x2 20419 | -4/Factory | Repaired Arm. Huge Wheel+ 20529 | -4/Factory | Garrison activated, responded to threat 20586 | -4/Factory | Identified exit to Garrison 20649 | -4/Factory | Entered Garrison 20649 | -4/Garrison | Accompanied by 20 allies 20683 | -4/Garrison | Triggered checkpoint 20713 | -4/Garrison | Expanded RIF knowledge: Code Merge 20744 | -4/Garrison | Garrison Relay disabled 20779 | -4/Garrison | Spotted B-86 Titan 20789 | -4/Garrison | Assimilated Titan 7a with formatsys_high 20897 | -4/Garrison | Found Relay Coupler [Proto] 20900 | -4/Garrison | Found Relay Coupler [Proto] 20905 | -4/Garrison | Found Relay Coupler [Proto] 20911 | -4/Garrison | Found Relay Coupler [Proto] 20988 | -4/Garrison | Assimilated ARC 7a with formatsys_deep 20991 | -4/Garrison | Spotted B-86 Titan 20994 | -4/Garrison | Triggered checkpoint 20995 | -4/Garrison | Triggered checkpoint 20997 | -4/Garrison | Triggered checkpoint 21049 | -4/Garrison | Lost 14 allies 21145 | -4/Garrison | Triggered checkpoint 21175 | -4/Garrison | Garrison Relay disabled 21199 | -4/Garrison | Discovered new exit (range 11) 21389 | -4/Garrison | Spotted Striker 21389 | -4/Garrison | Spotted Striker 21521 | -4/Garrison | Discovered new exit (range 15) 21598 | -4/Garrison | System corruption reached 10% 21622 | -4/Garrison | Expanded RIF knowledge: Crosswire 21779 | -4/Garrison | Garrison Relay disabled 21801 | -4/Garrison | Triggered checkpoint 22178 | -4/Garrison | Lost 5 allies 22250 | -4/Garrison | Discovered new exit (range 13) 22260 | -4/Garrison | Discovered new exit (range 75) 22260 | -4/Garrison | Discovered new exit (range 63) 22260 | -4/Garrison | Discovered new exit (range 18) 22281 | -4/Garrison | Triggered checkpoint 22313 | -4/Garrison | Triggered checkpoint 22344 | -4/Garrison | Lost 4 allies 22362 | -4/Garrison | Garrison Relay disabled 22384 | -4/Garrison | Garrison Relay disabled 22432 | -4/Garrison | Build established: Commander-Mutant 22658 | -4/Garrison | Entered Research 22658 | -3/Research | Accompanied by 16 allies 22658 | -3/Research | Evolved 2 slots: Utility x2 22729 | -3/Research | Lost 7 allies 22858 | -3/Research | Revision forces began assault on 0b10 22869 | -3/Research | Met up with Revision 17++ 23113 | -3/Research | Build established: Hauler-Mutant 23150 | -3/Research | Fabricated Exp. Transmission Jammer (x1) 23272 | -3/Research | Identified exit to Testing 23323 | -3/Research | Lost 3 allies 23358 | -3/Research | Research terminal network offline 23849 | -3/Research | Spotted B-86 Titan 23850 | -3/Research | Autoassimilated Titan 8a with RIF 23935 | -3/Research | Fabricated M-30 Cleanser (x1) 23958 | -3/Research | Spotted Striker 23961 | -3/Research | Spotted Striker 23962 | -3/Research | Autoassimilated Striker with RIF 24026 | -3/Research | Spotted Striker 24029 | -3/Research | Allies destroyed Striker 24130 | -3/Research | Lost 3 allies 24243 | -3/Research | Entered Testing 24243 | -3/Testing | Accompanied by 6 allies 24300 | -3/Testing | Garrison activated, responded to threat 24371 | -3/Testing | Lost 9 allies 24381 | -3/Testing | Build established: Botlord-Mutant 24385 | -3/Testing | Found Prototype Energy Cannon 24385 | -3/Testing | Identified Hpw. Disruptor Cannon 24436 | -3/Testing | Unchained authorized (CL-0N3) 24528 | -3/Testing | Garrison activated, responded to threat 24673 | -3/Testing | Garrison activated, responded to threat 24678 | -3/Testing | Identified exit to Garrison 24688 | -3/Testing | Lost 6 allies 24693 | -3/Testing | Entered Garrison 24693 | -3/Garrison | Accompanied by 3 allies 24727 | -3/Garrison | Triggered checkpoint 24783 | -3/Garrison | Expanded RIF knowledge: Signal Jamming 24795 | -3/Garrison | Triggered checkpoint 24822 | -3/Garrison | Spotted B-86 Titan 24829 | -3/Garrison | Triggered checkpoint 24830 | -3/Garrison | Assimilated Titan 8b with formatsys_high 24861 | -3/Garrison | Triggered checkpoint 24869 | -3/Garrison | Lost 8 allies 24875 | -3/Garrison | Triggered checkpoint 24932 | -3/Garrison | Discovered new exit (range 12) 25027 | -3/Garrison | Triggered checkpoint 25057 | -3/Garrison | Garrison Relay disabled 25098 | -3/Garrison | Garrison Relay disabled 25421 | -3/Garrison | Garrison Relay disabled 25445 | -3/Garrison | Triggered checkpoint 25484 | -3/Garrison | Lost 3 allies 25649 | -3/Garrison | Spotted B-75 Beast 25650 | -3/Garrison | Autoassimilated Beast 8a with RIF 25711 | -3/Garrison | Rewired B-75 Beast 25791 | -3/Garrison | Garrison Relay disabled 25815 | -3/Garrison | Found embedded Infiltrators 25847 | -3/Garrison | Triggered checkpoint 25885 | -3/Garrison | Discovered new exit (range 2) 25899 | -3/Garrison | Spotted Executioner 25899 | -3/Garrison | Spotted Executioner 25911 | -3/Garrison | Allies destroyed Executioner 25921 | -3/Garrison | Destroyed Executioner 25946 | -3/Garrison | Found Prototype Processor 25946 | -3/Garrison | Identified Exp. Core Analyzer 25984 | -3/Garrison | Found Exp. Core Analyzer 26171 | -3/Garrison | Triggered checkpoint 26197 | -3/Garrison | Garrison Relay disabled 26272 | -3/Garrison | Found Relay Coupler [Proto] 26281 | -3/Garrison | Found Relay Coupler [Proto] 26415 | -3/Garrison | Discovered new exit (range 20) 26670 | -3/Garrison | Entered Research 26670 | -2/Research | Accompanied by 12 allies 26670 | -2/Research | Evolved 2 slots: Utility x2 26971 | -2/Research | P-80 Master assimilated allied Veteran 8n 27021 | -2/Research | Spotted B-90 Cyclops 27043 | -2/Research | Destroyed B-90 Cyclops 27073 | -2/Research | Lost 3 allies 27170 | -2/Research | First assault squad dispatched 27228 | -2/Research | Identified exit to Garrison 27291 | -2/Research | Lost 3 allies 27418 | -2/Research | Lost 3 allies 27543 | -2/Research | Discovered new exit (range 60) 27571 | -2/Research | Lost 5 allies 27577 | -2/Research | High security lockdown imminent 27611 | -2/Research | Assimilated Heavy ARC 9a with formatsys_deep 27657 | -2/Research | High security lockdown engaged 27727 | -2/Research | Entered Access 27727 | -1/Access | Accompanied by 3 allies 27727 | -1/Access | Evolved 2 slots: Utility x2 27749 | -1/Access | Lost 13 allies 27977 | -1/Access | First assault squad dispatched 28018 | -1/Access | Spotted B-99 Colossus 28049 | -1/Access | Hijacked Colossus 10a control node with streamctrl_high 28102 | -1/Access | Lost 4 allies 28111 | -1/Access | Destroyed Colossus 10a 28137 | -1/Access | Lost 4 parts (1n3u) 28442 | -1/Access | Released all parts (21) 28475 | -1/Access | Lost 6 allies 28613 | -1/Access | Energy Cycler disabled 28642 | -1/Access | Discovered new exit (range 5) 28645 | *** | Escaped! Last Messages --------------- 28607_ RIF reveals location of hidden door. 28613_ ALERT: Power surge detected, dispatching additional patrols. 28613_ Energy Cycler explodes. 28617_ Knocked back. 28620_ Slug penetrates W-44 Eye. 28620_ Slug penetrates Wall. 28621_ Relay Coupler [Specialist] destroyed. 28622_ Knocked back. 28622_ Acquired 11 matter. 28623_ Penetrated by Slug. 28624_ Slug penetrates Wall. 28625_ Penetrated by Slug. 28625_ Slug penetrates Door. 28628_ Slug penetrates G-73 Enforcer. 28629_ Slug penetrates Wall. 28631_ Penetrated by Slug. 28631_ Acquired 50 matter. 28632_ Penetrated by Slug. 28642_ The Access Shell folds into the floor. 28642_ EXIT=FOUND Map ----- +----------------------------------------------------+ | ???????????????????????????????????#! + | | ???????????????????????????????????# # | | ???????????????????????????????????#######/####### | | ?????????????????????????????????######## #?????? | | ???????????????????????????????+ % #?????? | | ?????????????????????????????????######## #????## | | ????????????????????????????????????????# #??? | | ??##########???????????????????????????## #??? | | ??# #???????????????????????????##% ##? " | | ??# #???????????????????????????# !%!#? | | ### #############################![*=# | | ? / # *!%# | | ??# # R % ! | | ??# # #######p ""######### ! # | | ??# # #?????# ""#???????## ## ! | | ???? # #?????# ""#????????# #?? | | ?????? # #?????# T#????????# #?? | | ########/### #?????# ""#????????# #??? | | % #?????# ""#????????# #???### | | #????## ""##???????# #?????? | | ########/######????# #??????## ##????? | | ????# #?????## ##??????# ###### | | ????# ! #??????# #???????# "" | | ##### #??????# #???????# T" | | + " #??????# #???????# ###+## | | # """ #??????# @" #???????###### | | # """ #??????# "" #????????????# | | # " #??????# #????????????# " | | + #??????# #????????????# """ | | # =#??????# #????????????# "" | | ##########??????#""""""""""#????????????# " | | #???????????????????????????????????????# | | #???????????????????????????????????????# [ | | #???????????????????????????????????????# | | ! #???????????????????????????????????????###### | | #????????????????????????????????????????????? | | #####????????????????????????????????????????????? | | ?????????????????????????????????????????????????? | | ?????????????????????????????????????????????????? | | ?????????????????????????????????????????????????? | | ?????????????????????????????????????????????????? | | ?????????????????????????????????????????????????? | | ?????????????????????????????????????????????????? | | ?????????????????????????????????????????????????? | | ?????????????????????????????????????????????????? | | ?????????????????????????????????????????????????? | | ?????????????????????????????????????????????????? | | ?????????????????????????????????????????????????? | | ?????????????????????????????????????????????????? | | ?????????????????????????????????????????????????? | +----------------------------------------------------+ Best States ------------- Heat Dissipation 78 Energy Generation 29 Energy Capacity 350 Matter Stores 300 Matter Capacity 300 Sight Range 23 Terrain Scan Density 10 Jamming Range 22 Armor Coverage 825 Core Shielding 30 Point Defense Rating 240 Evasion (%) 50 Targeting Accuracy 8 Core Analysis 8 Armor Integrity Analysis 30 Recoil Reduction 4 Offensive Hacking 10 Relay Coupler Types 13 Relay Coupler Value 531 Authchip Count 1 Item Schematics ----------------- Cargo Storage Unit | -10/Materials | Hacked Arm. Huge Wheel | -8/Materials | Scanalyzed Spectral Analyzer | -3/Testing | Archive Fusion Reactor | -3/Testing | Archive Cld. Antigrav System | -3/Testing | Archive Robot Schematics ------------------ None Fabricated ------------ Exp. Transmission Jammer | x1 | -3/Research | Preloaded M-30 Cleanser | x1 | -3/Research | Preloaded Repaired ---------- Lgt. Assault Rifle | 76% | -10/Materials | Corrupted Arm. Huge Wheel | 51% | -4/Factory Studied --------- Mni. Grenade Launcher | -8/Materials | Hacked Datajack | -8/Materials | Hacked Lgt. Treads | -8/Materials | Hacked Arm. Huge Wheel | -7/Factory | Hacked Alien Tech Used ----------------- None Achievements -------------- Betrayal Most Foul Deep Understanding Hack The Planet Hackerman Let Me Out Of Here My Bad Satisfying The Better Part Of Valor Watcher Gambling Zeroed Repercussions Challenges ------------ None Game ------ Seed PitchforkTechCloak Manual? 0 Play Time 03:36:32 Cumulative 946.2 hours Start 2025.11.06 @ 17:12:01 End 2025.11.06 @ 20:52:53 Sessions 1 Manual Loads 0 Difficulty Rogue Special Mode None Game No. 1604 Rogue 1604 Adventurer 0 Explorer 0 Win Type 0 Total 93 Types 55/1/16/15/4/0/0/1/0/1 Lore% 93 Gallery% 83 Achievement% 62 Wizard Run 0 Options --------- Layout 0 ASCII 1 Keyboard 0 Movement Numpad Keybinds 1 Fullscreen 2 Font 18/SmallcapsGlow Map View 76x50 Zoom Use 0% Tactical HUD 1 Map Filters NONE Filters NONE Steam 1 RUN: 38e2e192-2de7-4213-8c75-1944cdadade9